Cogmind - Beta 17 @@@ ROGUE MODE // 2026.07.11 @ 20:39:17 Player: IsAway Result: Destroyed by Y-54 Guardian with Gatling Laser Performance ------------- Evolutions (3) 1500 Regions Visited (6) 1200 Robots Destroyed (35) 175 Value Destroyed (929) 929 Prototype IDs (27) 540 Alien Tech Used (0) 0 Bonus (374) 374 TOTAL SCORE: 4718 Bonus ------- Follower Combat Kills 74 Aligned with FarCom 300 Cogmind --------- Core Integrity 0/700 Matter 27/300 Energy 85/100 System Corruption 10% Temperature Cool (18) Movement Core (100) Ox1 Location -7/Factory Parts ------- > --- POWER (2) -------- (None) > --- PROPULSION (3) --- (None) > --- UTILITY (6) ------ (None) > --- WEAPON (2) ------- Arc Projector > --- INVENTORY (5) ---- Armored Huge Wheel Hardened Heavy Armor Plating Peak State ------------ > --- POWER ------------ Improved Deuterium Engine Reinforced Deuterium Engine > --- PROPULSION ------- Wheel Armored Huge Wheel > --- UTILITY ---------- Humpback Improved Signal Interpreter Light Armor Plating Hardened Medium Armor Plating Shock Absorption System > --- WEAPON ----------- Cooled Particle Cannon Makeshift Sword > --- INVENTORY -------- Improved Ion Engine Light Nuclear Core Light Nuclear Core Light Nuclear Core Wheel Cryofiber Web Improved Heat Sink Large Storage Unit Large Battery High-capacity Matter Pod Melee Analysis Suite Hardened Heavy Armor Plating Hardened Heavy Armor Plating Improved Light Armor Plating Improved Medium Armor Plating Improved Medium Armor Plating Improved Medium Armor Plating Improved Medium Armor Plating Shock Absorption System Hacking Suite Hacking Suite Arc Projector Arc Projector EM Pulse Cannon EM Pulse Cannon Latent Energy Streamer Minigun Flak Cannon Improved Grenade Launcher Improved Grenade Launcher Improved Grenade Launcher Improved Grenade Launcher Datajack [Rating: 50] Favorites ----------- Power Deuterium Engine Engine Deuterium Engine Power Core Light Nuclear Core Propulsion Wheel Wheel Wheel Utility Humpback Device Seismic Detector Storage Humpback Processor Improved Signal Interpreter Protection Hardened Medium Armor Plating Weapon Makeshift Sword Energy Gun Small Laser Energy Cannon Latent Energy Streamer Ballistic Gun High-powered Shotgun Ballistic Cannon Flak Cannon Launcher Improved Grenade Launcher Slashing Weapon Makeshift Sword Special Melee Weapon Datajack Build | -11 -10 -10 -10 -9 -8 -7 ------- Run | Yrd Mat Min Exi Min Mat Fac Slots Evolved 6 | . . . . . 4 2 Power 1 | . . . . . 1 . Propulsion 1 | . . . . . 1 . Utility 4 | . . . . . 2 2 Weapon . | . . . . . . . Parts Attached 51 | 7 . 4 2 3 17 18 Power 11 | 1 . 1 . 1 6 2 Engine 9 | 1 . 1 . 1 4 2 Core 2 | . . . . . 2 . Reactor . | . . . . . . . Propulsion 9 | 2 . 1 1 . 3 2 Treads . | . . . . . . . Leg . | . . . . . . . Wheel 9 | 2 . 1 1 . 3 2 Hover . | . . . . . . . Flight . | . . . . . . . Utility 12 | 2 . . . . 3 7 Device 4 | 1 . . . . 1 2 Storage 3 | 1 . . . . 2 . Processor 1 | . . . . . . 1 Hackware . | . . . . . . . Protection 4 | . . . . . . 4 Artifact . | . . . . . . . Weapon 19 | 2 . 2 1 2 5 7 Energy Gun 5 | 2 . . . . 1 2 Energy Cannon 3 | . . . 1 . . 2 Ballistic Gun 2 | . . . . . 2 . Ballistic Cannon 2 | . . . . . 2 . Launcher 5 | . . 1 . 1 . 3 Special Weapon . | . . . . . . . Impact Weapon . | . . . . . . . Slashing Weapon 1 | . . . . 1 . . Piercing Weapon . | . . . . . . . Special Melee Weapon 1 | . . 1 . . . . Unidentified Prototypes 4 | . . . . . 2 2 Corrupted Parts 2 | . . . . . 2 . System Corruption 20 | . . . . . 20 . Parts Lost 23 | . . 1 . . 6 16 Power 4 | . . . . . 2 2 Propulsion 6 | . . . . . 3 3 Utility 9 | . . . . . 1 8 Weapon 4 | . . 1 . . . 3 Highest Loss Streak 12 | . . 1 . . 2 12 To Critical Strikes . | . . . . . . . Average Backups 16 | 1 3 7 7 7 17 30 Power 1 | . 1 1 . . 1 3 Propulsion . | . . 1 1 . . . Utility 8 | . . 2 3 4 9 15 Weapon 5 | . 1 1 2 2 5 10 Tool/Special . | . . . . . . . Unused Backups 20 | . . . 1 1 1 17 Power 3 | . . . 1 . . 2 Propulsion 1 | . . . . 1 . . Utility 13 | . . . . . . 13 Weapon 3 | . . . . . 1 2 Tool/Special . | . . . . . . . Average Slot Usage (%) 85 | . 100 99 100 100 76 78 Engine 13 | . 14 14 14 14 11 13 Core 1 | . . . . . 2 . Wheel 21 | . 28 28 28 28 20 13 Device 9 | . 14 14 14 14 7 6 Storage 13 | . 14 14 14 14 18 6 Processor 1 | . . . . . . 5 Protection 3 | . . . . . . 14 Energy Gun 6 | . 28 25 5 . 1 . Energy Cannon 3 | . . . 8 14 3 2 Ballistic Gun 1 | . . . . . 2 . Launcher 1 | . . . . 1 . 4 Slashing Weapon 4 | . . . . 6 7 6 Special Melee Weapon 2 | . . 2 14 5 . . Peak Build Rating 50 | 7 7 8 17 20 31 50 Average Rating 23 | 5 7 7 13 18 24 39 On Entrance 12 | . 7 7 8 16 20 31 Avg Prop Armor Cover (%) . | . . . . . . . Naked Turns 14 | . . . . . . 14 Heaviest Build 252 | 11 11 13 22 25 229 252 Greatest Support 38 | 26 26 26 26 20 30 38 Greatest Overweight (x) 24 | . . . 1 1 22 24 Average Overweight (x) 4 | . . . . 1 10 11 Largest Inventory Capacity 35 | 8 8 8 8 8 35 35 Average Capacity 24 | 7 8 8 8 8 35 33 Most Carried 35 | 2 4 8 8 8 35 35 Average Carried 17 | 1 3 7 7 7 18 32 Final Capacity 35 | 8 8 8 8 8 35 5 Final Carried 35 | 2 4 8 8 8 35 4 Class Distribution -------------------- 41% | Hauler-Mutant 36% | Mutant 12% | Hauler-Assassin 7% | Hauler-Skirmisher Dominant Class ---------------- Mutant | -10/Materials Mutant | -10/Mines Mutant | -10/Exiles Mutant | -9/Mines Hauler-Mutant | -8/Materials Hauler-Mutant | -7/Factory Resources | -11 -10 -10 -10 -9 -8 -7 ----------- Run | Yrd Mat Min Exi Min Mat Fac Matter Collected 1408 | 211 . 233 . 103 592 269 Remotely . | . . . . . . . Salvage Created 1226 | 80 . 145 . 190 468 343 Parts 67 | 3 . 12 . 7 34 11 Haulers Intercepted 1 | . . . . . . 1 Recyclers Shooed . | . . . . . . . Parts Field Recycled . | . . . . . . . Retrieved Matter . | . . . . . . . Parts Self-Destructed . | . . . . . . . Prevented . | . . . . . . . Parts Restored . | . . . . . . . Kills | -11 -10 -10 -10 -9 -8 -7 ------- Run | Yrd Mat Min Exi Min Mat Fac Combat Hostiles Destroyed 19 | . . 5 . 2 7 5 Melee 2 | . . . . . 1 1 Guns 3 | . . . . . 3 . Cannons 1 | . . . . . 1 . AOE 13 | . . 5 . 2 2 4 Classes Destroyed 9 | 2 . 4 . 1 . 2 Worker 4 | . . 1 . . 2 1 Builder 5 | . . 1 . . 4 . Tunneler 1 | 1 . . . . . . Hauler 1 | . . . . . . 1 Recycler 4 | 1 . 1 . 1 . 1 Swarmer 3 | . . 3 . . . . Grunt 10 | . . 2 . . 5 3 Brawler 1 | . . . . . . 1 Sentry 6 | . . . . 2 3 1 Best Kill Streak 8 | 2 . 8 . 3 3 3 Combat Bots Only 5 | . . 5 . 2 3 3 Max Kills in Single Turn 2 | 1 . 2 . 1 2 2 Gunslinging . | . . . . . . . Exploded 2 | . . 2 . 1 1 2 Melee 1 | . . . . . 1 1 Uniques/NPCs Destroyed . | . . . . . . . Combat | -11 -10 -10 -10 -9 -8 -7 -------- Run | Yrd Mat Min Exi Min Mat Fac Hostile Shots Fired 318 | . . 13 . 4 62 239 Missed 79 | . . 2 . 1 19 57 Hits 239 | . . 11 . 3 43 182 Projectile 239 | . . 11 . 3 43 182 Critical Strikes 8 | . . . . . 1 7 Damage Taken 3526 | . . 219 . 44 890 2373 Core 998 | . . 42 . . 256 700 Absorbed by Shields . | . . . . . . . Ignored by Resistances 22 | . . . . . . 22 Core Remaining (%) 78 | 100 . . . 83 53 . Volleys Fired 75 | 7 . 9 . 3 31 25 Largest 2 | 2 . 2 . 2 2 2 Hottest 126 | 80 . 80 . 93 70 126 Shots Fired 116 | 14 . 18 . 4 48 32 Gun 67 | 14 . 14 . . 30 9 Cannon 27 | . . . . 1 16 10 Launcher 22 | . . 4 . 3 2 13 Special . | . . . . . . . Kinetic 38 | . . . . . 38 . Thermal 46 | 14 . 14 . . 1 17 Explosive 22 | . . 4 . 3 2 13 Electromagnetic 10 | . . . . 1 7 2 Robot Hit Streak 14 | 5 . 14 . 1 11 6 Robot Miss Streak 7 | 1 . 1 . 1 7 2 Penetration Max . | . . . . . . . Secondary Targets 2 | . . . . . 2 . Max Gunslinging Chain 1 | . . . . . 1 . Shots Hit Robots 88 | 10 . 16 . 2 39 21 Core Hits 59 | 3 . 9 . 6 27 14 Critical Kills . | . . . . . . . Critical Parts Destroyed . | . . . . . . . Critical Strikes . | . . . . . . . Melee Attacks 26 | . . . . 7 10 9 Impact . | . . . . . . . Slashing 26 | . . . . 7 10 9 Piercing . | . . . . . . . Sneak Attacks 5 | . . . . 1 2 2 Combat Hostiles . | . . . . . . . Follow-up Attacks . | . . . . . . . Damage Inflicted 3844 | 111 . 511 . 202 1380 1640 Guns 754 | 111 . 133 . . 282 228 Cannons 502 | . . . . 4 175 323 Explosions 1986 | . . 370 . 125 708 783 Melee 575 | . . . . 73 215 287 Ramming 27 | . . 8 . . . 19 Kinetic 419 | . . . . . 419 . Thermal 770 | 111 . 133 . . . 526 Explosive 1287 | . . 370 . 60 102 755 Electromagnetic 766 | . . . . 69 644 53 Impact . | . . . . . . . Slashing 575 | . . . . 73 215 287 Piercing . | . . . . . . . Highest Corruption 39 | . . . . 2 39 10 Average Corruption 26 | . . . . 2 33 6 Corruption Purged . | . . . . . . . Corruption Blocked . | . . . . . . . Effects 66 | . . . . 4 60 2 Message Errors 10 | . . . . 1 9 . Matter Fused 14 | . . . . 2 12 . Heat Flow Errors 13 | . . . . . 12 1 Energy Discharges 5 | . . . . 1 4 . Parts Rejected 1 | . . . . . 1 . Parts Fused 1 | . . . . . 1 . Data Loss (minor) 8 | . . . . . 8 . Data Loss (major) 3 | . . . . . 3 . Misfires 4 | . . . . . 3 1 Alerts 1 | . . . . . 1 . Weapon Failures 6 | . . . . . 6 . Overload Shots 17 | . . . . . . 17 Effects 1 | . . . . . . 1 Heat Surge 1 | . . . . . . 1 Overflow Damage 147 | . . 44 . . 77 26 Projectiles . | . . . . . . . Explosions 90 | . . 44 . . 34 12 Melee 57 | . . . . . 43 14 Knockbacks 2 | . . . . . 2 . Impact . | . . . . . . . Kinetic 2 | . . . . . 2 . Secondary . | . . . . . . . Self-Inflicted Damage 518 | . . 120 . . 244 154 Shots 13 | . . 4 . . 4 5 Rammed 5 | . . 3 . . . 2 Targets Rammed 5 | . . 3 . . . 2 Kicked . | . . . . . . . Crushed . | . . . . . . . Highest Temperature 742 | 72 . 72 . 43 336 742 Average Temperature 176 | 29 . 33 . 31 99 355 Received Heat Transfer 927 | . . 33 . 18 360 516 Effects 37 | . . . . . 1 36 Shutdowns 13 | . . . . . . 13 Energy Bleed 2 | . . . . . 1 1 Interference 5 | . . . . . . 5 Matter Decay 6 | . . . . . . 6 Short Circuit 1 | . . . . . . 1 Damage (minor) 5 | . . . . . . 5 Damage (major) 3 | . . . . . . 3 Damage (core) 2 | . . . . . . 2 Siege Activations . | . . . . . . . Martial Activations . | . . . . . . . Shielding Activations . | . . . . . . . Robots Disrupted . | . . . . . . . Combat Hostiles . | . . . . . . . Robots Corrupted . | . . . . . . . Combat Hostiles . | . . . . . . . Parts Fried . | . . . . . . . Impact Corruptions . | . . . . . . . Robots Melted . | . . . . . . . Combat Hostiles . | . . . . . . . Parts Melted 1 | . . 1 . . . . Heat Transferred 1100 | 250 . 300 . . . 550 Parts Sabotaged . | . . . . . . . Parts Stolen . | . . . . . . . Parts Stripped . | . . . . . . . Power Chain Reactions 1 | . . . . . . 1 Latent Energy Used 949 | . . . . 69 880 . LE Corruption 19 | . . . . 2 17 . Alert | -11 -10 -10 -10 -9 -8 -7 ------- Run | Yrd Mat Min Exi Min Mat Fac Maximum Alert Level . | . . . . . . . Low Security (%) 100 | 100 100 100 . 100 100 100 Level 1 . | . . . . . . . Level 2 . | . . . . . . . Level 3 . | . . . . . . . Level 4 . | . . . . . . . Level 5 . | . . . . . . . High Security . | . . . . . . . Max Security . | . . . . . . . Peak Influence 125 | 10 5 125 . 58 122 120 Initial 35 | . . . . . . 35 Average 32 | 1 . 37 . 12 46 21 Influence Increases 1115 | 10 5 210 . 63 552 275 Destroy 0b10 Robot/C 420 | . . 100 . 40 180 100 Destroy 0b10 Robot/NC 75 | 10 . 15 . 5 30 15 Destroy Leader 102 | . . 20 . . 60 22 Allied During Kill 8 | . . . . . 8 . Successful Hack 32 | . 5 . . . 3 24 Select Force Hacks 30 | . . . . . 30 . Disable Machine 150 | . . . . . 120 30 Destroy Structure 223 | . . 15 . 18 121 69 Lose Combat Pursuer 75 | . . 60 . . . 15 Influence Decreases 1115 | 10 5 210 . 63 473 354 Entered New Map 44 | . . . . . . 44 Time Decay 858 | 10 5 200 . 63 373 207 Lost Part 173 | . . 10 . . 60 103 Lost Ally 40 | . . . . . 40 . Squads Dispatched 7 | . 1 . . . 3 3 Investigation 2 | . . . . . 2 . Extermination 1 | . . . . . . 1 Reinforcement 3 | . 1 . . . 1 1 Assault . | . . . . . . . Garrison 1 | . . . . . . 1 Intercept . | . . . . . . . Searches Triggered . | . . . . . . . Construction Impeded 1 | . . . . . . 1 Haulers Reinforced . | . . . . . . . Active Scanning Responses . | . . . . . . . Cargo Convoy Interrupts . | . . . . . . . Stealth | -11 -10 -10 -10 -9 -8 -7 --------- Run | Yrd Mat Min Exi Min Mat Fac Distress Signals 1 | . . . . . 1 . Communications Jammed . | . . . . . . . Distress Signals . | . . . . . . . Times Spotted 35 | . 1 9 . 1 15 9 Peak Tracking Total 5 | . 1 5 . 1 3 3 Tactical Retreats 3 | . . 2 . . . 1 Traps | -11 -10 -10 -10 -9 -8 -7 ------- Run | Yrd Mat Min Exi Min Mat Fac Traps Triggered . | . . . . . . . Indirectly . | . . . . . . . Trap Hack Attempts . | . . . . . . . Triggered . | . . . . . . . Disarmed . | . . . . . . . Reprogrammed . | . . . . . . . Reused . | . . . . . . . Traps Extracted . | . . . . . . . Installed . | . . . . . . . Triggered . | . . . . . . . Machines | -11 -10 -10 -10 -9 -8 -7 ---------- Run | Yrd Mat Min Exi Min Mat Fac Machines Disabled 12 | . . . . 2 8 2 Max in Single Turn 4 | . . . . 2 4 1 Machines Repaired . | . . . . . . . Machines Dismantled . | . . . . . . . Machines Sabotaged . | . . . . . . . Overloaded Fab Kills . | . . . . . . . Hacking | -11 -10 -10 -10 -9 -8 -7 --------- Run | Yrd Mat Min Exi Min Mat Fac Machines Accessed 13 | . 2 1 1 . 7 2 Terminals 9 | . 2 1 . . 4 2 Fabricators . | . . . . . . . Repair Stations 1 | . . . . . 1 . Recycling Units 1 | . . . . . 1 . Scanalyzers 1 | . . . . . 1 . Garrison Access . | . . . . . . . Total Hacks 32 | . 6 3 1 . 17 5 Successful 15 | . 1 1 1 . 9 3 Failed 17 | . 5 2 . . 8 2 Catastrophic 5 | . 1 . . . 3 1 Database Lockouts . | . . . . . . . Manual 10 | . 1 . 1 . 6 2 Terminals 23 | . 6 3 . . 9 5 Fabricators . | . . . . . . . Repair Stations 3 | . . . . . 3 . Recycling Units 2 | . . . . . 2 . Scanalyzers 3 | . . . . . 3 . Garrison Access . | . . . . . . . Terminal Hacks 9 | . 1 1 1 . 3 3 Record 5 | . . . . . 2 3 Robot Analysis 1 | . 1 . . . . . Branch Access Points 1 | . . . . . 1 . Zone Layout 1 | . . 1 . . . . Proto ID Catalog 1 | . . . 1 . . . Fabricator Hacks . | . . . . . . . Repair Station Hacks 2 | . . . . . 2 . Scan Component 1 | . . . . . 1 . Repair 1 | . . . . . 1 . Recycling Unit Hacks 1 | . . . . . 1 . Retrieve Components 1 | . . . . . 1 . Scanalyzer 2 | . . . . . 2 . Retrieve Study 2 | . . . . . 2 . Garrison Access Hacks . | . . . . . . . Unauthorized Hacks 1 | . . . . . 1 . Terminals . | . . . . . . . Fabricators . | . . . . . . . Repair Stations . | . . . . . . . Recycling Units 1 | . . . . . 1 . Tunnel 1 | . . . . . 1 . Scanalyzers . | . . . . . . . Garrison Access . | . . . . . . . Data Cores Recovered . | . . . . . . . Used . | . . . . . . . Hacking Detections 11 | . 2 1 . . 6 2 Full Trace Events 3 | . 1 . . . 2 . Feedback Events . | . . . . . . . Feedback Blocked . | . . . . . . . Robot Schematics Acquired . | . . . . . . . Robots Built . | . . . . . . . Authchips . | . . . . . . . Time . | . . . . . . . Total Robot Build Rating . | . . . . . . . Part Schematics Acquired . | . . . . . . . Parts Built . | . . . . . . . Authchips . | . . . . . . . Time . | . . . . . . . Total Part Build Rating . | . . . . . . . Part Studies Acquired 2 | . . . . . 2 . Parts Repaired . | . . . . . . . Time 32 | . . . . . 32 . Parts Recycled . | . . . . . . . Recycled Matter . | . . . . . . . Retrieved Matter . | . . . . . . . Retrieved Components . | . . . . . . . Parts Scanalyzed . | . . . . . . . Part Schematics Acquired . | . . . . . . . Parts Damaged . | . . . . . . . Bothacking | -11 -10 -10 -10 -9 -8 -7 ------------ Run | Yrd Mat Min Exi Min Mat Fac Used RIF Installer . | . . . . . . . Robots Hacked . | . . . . . . . Non-combat . | . . . . . . . Combat . | . . . . . . . Robot Hacks Applied . | . . . . . . . Relay Couplers Released . | . . . . . . . Fabnet Peak Effective % . | . . . . . . . Robots Rewired . | . . . . . . . Allies Hacked . | . . . . . . . Hacks Repelled . | . . . . . . . Allies | -11 -10 -10 -10 -9 -8 -7 -------- Run | Yrd Mat Min Exi Min Mat Fac Total Allies 3 | . . . . 3 . . Largest Group 3 | . . . . 3 3 . Highest-Rated Group 40 | . . . . 40 40 . Highest-Rated Ally 16 | . . . . 16 16 . Total Orders . | . . . . . . . Ally Attacks 10 | . . . . . 10 . Total Damage 117 | . . . . . 117 . Kills 2 | . . . . . 2 . Allies Corrupted . | . . . . . . . Allies Melted . | . . . . . . . Intel | -11 -10 -10 -10 -9 -8 -7 ------- Run | Yrd Mat Min Exi Min Mat Fac Active Infowar (turns) 2375 | 10 87 668 262 320 1028 . Sensors 694 | . . . . . 694 . Seismic 1681 | 10 87 668 262 320 334 . Robot Analysis Total 1 | . 1 . . . . . Derelict Logs Recovered 2 | . . 1 . 1 . . Drone Launches . | . . . . . . . Drone Recoveries . | . . . . . . . Exploration | -11 -10 -10 -10 -9 -8 -7 ------------- Run | Yrd Mat Min Exi Min Mat Fac Turns Passed 3652 | 68 87 668 262 320 1321 926 Spaces Moved 2085 | 39 95 673 278 228 457 315 Core 1 | 1 . . . . . . Treads . | . . . . . . . Legs . | . . . . . . . Wheels 2084 | 38 95 673 278 228 457 315 Hover . | . . . . . . . Flight . | . . . . . . . Fastest Speed 50 | 50 90 90 90 95 175 175 Average Speed 143 | 88 90 90 91 95 226 239 Slowest Speed 430 | 90 90 90 95 95 410 430 Overloaded Moves . | . . . . . . . Propulsion Burnouts . | . . . . . . . Robots Hopped . | . . . . . . . Potential Cave-ins 1 | . . 1 . . . . Cave-ins Triggered 1 | . . . . . . 1 Exploration Rate (%) 43 | 3 26 99 69 58 39 8 Regions Visited 6 Branch Regions 3 Pre-discovered Areas 2 | . . 1 . . 1 . Known Exits Taken . | . . . . . . . Unknown Exits Taken 6 | 1 1 1 1 1 1 . Scrap Searched 5 | . . 3 . 2 . . Spaces Dug 8 | . . . . 2 5 1 Terrain Destroyed 339 | . . 40 . 36 164 99 Melee 8 | . . . . 2 5 1 Projectile 5 | . . . . . . 5 AOE 326 | . . 40 . 34 159 93 Terrain Rammed . | . . . . . . . Walls Destroyed . | . . . . . . . Machines Disabled . | . . . . . . . Actions | -11 -10 -10 -10 -9 -8 -7 --------- Run | Yrd Mat Min Exi Min Mat Fac Total 2559 | 54 96 716 285 319 682 407 Wait 227 | . . 17 2 75 122 11 Move 2079 | 38 94 672 277 227 456 315 Hop . | . . . . . . . Pick Up 54 | 2 2 7 1 1 34 7 Fast Attach 22 | 7 . 1 1 . 8 5 Attach 19 | . . 1 . . 6 12 Detach 8 | . . . . . 4 4 Swap 21 | . . 3 1 4 7 6 Drop 23 | . . 3 3 2 4 11 Fire 75 | 7 . 9 . 3 31 25 Melee 26 | . . . . 7 10 9 Ram 5 | . . 3 . . . 2 Kick . | . . . . . . . Crush . | . . . . . . . Escape Stasis . | . . . . . . . Rewire . | . . . . . . . Trap . | . . . . . . . Miscellaneous . | . . . . . . . Route ------- -11/Scrapyard -10/Materials -10/Mines (discovered 4 exits: [*Mat x2] / *Exi / [*Sub]) -10/Exiles -9/Mines -8/Materials -7/Factory History --------- Turn | Location | Event 20 | -11/Scrapyard | Discovered new exit (range 16) 69 | -11/Scrapyard | Entered Materials 144 | -10/Materials | Discovered new exit (range 14) 156 | -10/Materials | Entered Mines 320 | -10/Mines | Build established: Mutant 382 | -10/Mines | Received a Rocket Launcher from a helpful Derelict 397 | -10/Mines | Discovered new exit (range 6) 450 | -10/Mines | Learned location of Storage (-7) 521 | -10/Mines | Discovered new exit (range 3) 580 | -10/Mines | Learned 2 Materials zone layouts 618 | -10/Mines | Discovered new exit (range 8) 818 | -10/Mines | Deemed a non-threat by the Exiles lab entrance 818 | -10/Mines | Discovered new exit (range 5) 824 | -10/Mines | Entered Exiles 847 | -10/Exiles | Met 8R-AWN 862 | -10/Exiles | Met EX-HEX 888 | -10/Exiles | Met EX-BIN 898 | -10/Exiles | Aligned with FarCom system 899 | -10/Exiles | Given EX-Vault access code 920 | -10/Exiles | Opened EX-Vault 927 | -10/Exiles | Found Latent Energy Streamer 945 | -10/Exiles | Warned to stay clear of 0b10 Research branches 959 | -10/Exiles | Exiles lab attacked by MAIN.C 1077 | -10/Exiles | Discovered new exit (range 10) 1086 | -10/Exiles | Left Exiles lab with Latent Energy Streamer 1086 | -10/Exiles | Entered Mines 1159 | -9/Mines | A weapon hastily lodged in a ceiling crevice suddenly fell to the ground 1263 | -9/Mines | Joined a pair of Derelicts in attacking an 0b10 outpost 1328 | -9/Mines | Learned Materials security intel 1329 | -9/Mines | Assisted by bots powering up and referring to "LRC-V3" 1376 | -9/Mines | Discovered new exit (range 5) 1406 | -9/Mines | Entered Materials 1406 | -8/Materials | Accompanied by 3 allies 1406 | -8/Materials | Evolved 4 slots: Power x1, Propulsion x1, Utility x2 1714 | -8/Materials | Build established: Hauler-Mutant 1817 | -8/Materials | System corruption reached 10% 1961 | -8/Materials | System corruption reached 30% 2339 | -8/Materials | Build established: Hauler-Assassin 2650 | -8/Materials | Discovered new exit (range 15) 2727 | -8/Materials | Entered Factory 2727 | -7/Factory | Evolved 2 slots: Utility x2 3034 | -7/Factory | Build established: Hauler-Mutant 3518 | -7/Factory | Crushed by falling debris 3549 | -7/Factory | Lost 4 parts (1n2u1w) 3586 | -7/Factory | Core integrity fell below 50% 3598 | -7/Factory | Garrison activated, responded to threat 3616 | -7/Factory | System corruption reached 10% 3646 | -7/Factory | Core integrity fell below 20% 3653 | -7/Factory | Destroyed by Y-54 Guardian with Gatling Laser Last Messages --------------- U-05 Engineer builds a Wall. The unstable cave ceiling collapses. Imp. Medium Armor Plating destroyed. The unstable cave ceiling collapses. Imp. Light Armor Plating destroyed. U-05 Engineer lays Concrete. Imp. Heat Sink destroyed. U-05 Engineer lays Concrete. U-05 Engineer builds a Wall. U-05 Engineer lays Concrete. The unstable cave ceiling collapses. Lgt. Nuclear Core crushed. U-05 Engineer lays Concrete. Door malfunctions. U-05 Engineer builds a Wall. The unstable cave ceiling collapses. Acquired Arc Projector. U-05 Engineer lays Concrete. The unstable cave ceiling collapses. U-05 Engineer lays Concrete. Map ----- +----------------------------------------------------+ | ?# = [!! # # """ #????????? | | ?? [!! ?# # """"" #????????? | | ?? ?# # """"" #????????? | | ???###########??# + #????????? | | ????????????????# # * #????????? | | ????????????????# # #????????? | | ????????????????# #! #????????? | | ????????????????# ##############?????? | | ????????????????+ + ^ ! #?????? | | ????????????????# # #?????? | | ????????????????# # " " " " " #?????? | | ????????????????# # " " " " " ???????? | | ????????????????# # " " " " " ??????? | | ???????????????? # " " " " " #?????? | | ??????????????? # " " " " " #?????? | | ?????????????? # " " " " " #?????? | | ?????????????######## " " " " " #?????? | | ????????????????????# " " " " " #?????? | | ????????????????????# " " " " " #?????? | | ????????????????????# #?????? | | ????????????????????######/######??????? | | ??????????????????????# # # ##????????? | | ??????????????????????# ]# * #????????? | | ??????????????????????##[*!# #######??? | | ??????????????????????##!]*#! #??? | | ??????????????????????##!@!!! #??? | | ??????????????????????##]/!/] """ #??? | | ???????????????????? !!][! """ #??? | | ????????????????? ### !! ; """ ???? | | ????????????????# ???# u # ???? | | ????????????????# ??? # p ######???? | | ????????????????# ???# # u #????????? | | ????????????????#????# ###????????? | | ?????????????????????## # # ????????? | | ???????????????????? # # ???????? | | ???????????????????? # # # ???????? | | ??????????????????? # gY # """??????? | | ?????????????????? # + """??????? | | ??????????????????? ## # "????????? | | ??????????????????????### # "????????? | | ????????????????????????? ???????????? | | ???????????????????????????????????????? | | ???????????????????????????????????????? | | ???????????????????????????????????????? | | ???????????????????????????????????????? | | ???????????????????????????????????????? | | ???????????????????????????????????????? | | ???????????????????????????????????????? | | ???????????????????????????????????????? | | ???????????????????????????????????????? | +----------------------------------------------------+ Best States ------------- Heat Dissipation 48 Energy Generation 27 Energy Capacity 535 Matter Stores 300 Matter Capacity 300 Sight Range 16 Robot Scan Range 15 Terrain Scan Density 10 Armor Coverage 600 Resistance: EX 25 Evasion (%) 42 Item Schematics ----------------- None Robot Schematics ------------------ None Fabricated ------------ Nothing Repaired ---------- Nothing Studied --------- Deuterium Engine | -8/Materials | Hacked Wheel | -8/Materials | Hacked Alien Tech Used ----------------- None Achievements -------------- Dramatic Entrance My Bad Overkill Challenges ------------ None Game ------ Seed DimensionalChromionGravjet Manual? 0 Play Time 00:41:10 Cumulative 28.9 hours Start 2026.07.11 @ 19:57:44 End 2026.07.11 @ 20:39:17 Sessions 1 Manual Loads 0 Difficulty Rogue Special Mode None Game No. 41 Rogue 41 Adventurer 0 Explorer 0 Win Type - Total 0 Types 0/0/0/0/0/0/0/0/0/0 Lore% 30 Gallery% 23 Achievement% 22 Wizard Run 0 Options --------- Layout 1 ASCII 0 Keyboard 0 Movement Mouse Keybinds 0 Fullscreen 1 Font 18/SmallcapsGlow Map View 51x41 Zoom Use 0% Tactical HUD 0 Map Filters NONE Filters NONE Steam 1 RUN: a4a06d5e-4384-4a02-b416-4e06d4d33b3b